fUSD/lending_fUSD_20260407
["ID","MTS","AMOUNT","RATE_DAILY","PERIOD"]
[419999229,1775599832527,-57693.71914072,0.00014538,2]
[419999230,1775599832537,-302.74793462,0.00014624,2]
[419999231,1775599832549,-1297.25206538,0.00014624,2]
[419999232,1775599832559,-150.0,0.00014933,2]
[419999233,1775599832568,-4635.44382095,0.0001499,2]
[419999234,1775599832577,-300.0,0.00015,2]
[419999235,1775599832586,-2067.70127611,0.00015,2]
[419999236,1775599832595,-8049.59041624,0.00015,2]
[419999237,1775599832604,-200.0,0.00015199,2]
[419999238,1775599832614,-1280.88388878,0.00015199,2]
[419999239,1775599832623,-399.3239693,0.00015199,2]
[419999240,1775599832632,-181.08010149,0.00015199,2]
[419999241,1775599832641,-854.56470337,0.00015199,2]
[419999242,1775599832650,-194.83183622,0.00015199,2]
[419999243,1775599832660,-150.0,0.000152,2]
[419999244,1775599832669,-150.0,0.000152,2]
[419999245,1775599832678,-166.55241997,0.000153,5]
[419999246,1775599832704,-322.59321388,0.000153,5]
[419999247,1775599832715,-462.11065713,0.000153,5]
[419999248,1775599832726,-429.08130724,0.000153,5]
[419999249,1775599832737,-333.21722903,0.000153,5]
[419999250,1775599832748,-86.44517275,0.000153,5]
[419999251,1775599832757,-899.08842725,0.000153,5]
[419999252,1775599832783,-0.91157275,0.000153,5]
[419999253,1775599832793,-500.0,0.000153,5]
[419999254,1775599832802,-931.70372915,0.000153,2]
[419999255,1775599832813,-577.69225892,0.000153,2]
[419999256,1775599832825,-8.24401193,0.000153,2]
[419999257,1775599832834,-2500.0,0.00015341,2]
[419999258,1775599832843,-350.0,0.00015381,2]
[419999259,1775599832852,-3600.0,0.000154,5]
[419999260,1775599832862,-1900.0,0.000154,5]
[419999261,1775599832872,-1000.0,0.000154,5]
[419999262,1775599832881,-587.0,0.00015407,2]
[419999263,1775599832890,-150.0,0.00015467,2]
[419999264,1775599832901,-5400.0,0.000155,5]
[419999265,1775599832911,-980.97863727,0.000155,5]
[419999266,1775599832922,-1919.02136273,0.000155,5]
[419999267,1775599832931,-1500.0,0.000155,5]
[419999268,1775599832941,-217.68843475,0.000156,5]
[419999272,1775599838164,-500.0,0.00015442,2]
[419999273,1775599838174,-500.0,0.00015442,2]
[419999274,1775599838183,-204.60703617,0.00015442,2]
[419999275,1775599838192,-3024.02417054,0.000156,5]
[419999276,1775599838204,-570.8487,0.000156,5]
[419999446,1775599840282,-430.4257349,0.000156,5]
[419999447,1775599840370,-1589.89832476,0.000156,5]
[419999448,1775599840459,-1367.11463505,0.000156,5]
[419999449,1775599840468,-3900.0,0.000156,5]
[419999450,1775599840478,-2000.0,0.000156,5]
[419999451,1775599840488,-434.65238755,0.00015625,4]
[419999452,1775599841097,-71.34761245,0.00015625,4]
[419999453,1775599841107,-165.1943,0.000157,2]
[419999454,1775599841117,-321.40240736,0.000157,2]
[419999475,1775599843015,-678.59759264,0.000157,2]
[419999476,1775599843024,-5559.53372191,0.000157,5]
[419999477,1775599843037,-3540.46627809,0.000157,5]
[419999478,1775599843047,-4900.0,0.000157,5]
[419999479,1775599843057,-2500.0,0.000157,5]
[419999480,1775599843067,-200.0,0.00015747,2]
[419999481,1775599843077,-3677.683,0.00015799,2]
[419999482,1775599843087,-193.186,0.00015799,2]
[419999483,1775599843097,-1782.95904754,0.000158,5]
[419999506,1775599846073,-17.04095246,0.000158,5]
[419999507,1775599846083,-900.0,0.000158,5]
[419999508,1775599846093,-500.0,0.000158,5]
[419999509,1775599846104,-150.0,0.000158,2]
[419999510,1775599846114,-500.0,0.00015836,2]
[419999511,1775599846123,-500.0,0.00015839,2]
[419999512,1775599846133,-500.0,0.00015839,2]
[419999513,1775599846143,-200.37370719,0.00015839,2]
[419999514,1775599846157,-299.62629281,0.00015839,2]
[419999515,1775599846167,-500.0,0.00015839,2]
[419999516,1775599846176,-500.0,0.00015839,2]
[419999517,1775599846186,-1000.0,0.0001584,2]
[419999518,1775599846195,-1000.0,0.0001584,2]
[419999519,1775599846205,-1000.0,0.0001584,2]
[419999520,1775599846214,-169.1901,0.0001589,2]
[419999521,1775599846223,-184.08360682,0.000159,2]
[419999522,1775599846235,-233.39644016,0.000159,2]
[419999523,1775599846244,-150.0,0.000159,2]
[419999524,1775599846253,-150.0,0.000159,2]
[419999525,1775599846263,-5000.0,0.000159,2]
[419999526,1775599846272,-150.0,0.000159,2]
[419999527,1775599846282,-1800.0,0.000159,5]
[419999528,1775599846291,-150.0,0.000159,2]
[419999529,1775599846301,-900.0,0.000159,5]
[419999530,1775599846310,-2369.48123962,0.000159,2]
[419999531,1775599846342,-5363.76671501,0.000159,2]
[419999532,1775599846354,-354.40918348,0.000159,2]
[419999533,1775599846363,-500.0,0.000159,5]
[419999534,1775599846372,-399.39715108,0.000159,2]
[419999535,1775599846381,-150.0,0.000159,2]
[419999536,1775599846391,-205.5173315,0.000159,2]
[419999537,1775599846400,-5941.0628085,0.000159,2]
[419999538,1775599846492,-1087.24349704,0.000159,2]
[419999541,1775600218114,5533.0,0.000111,5]
[419999542,1775600218325,4467.01,0.000109,3]
[419999543,1775600218349,1065.99,0.000109,3]
[419999544,1775600220095,8934.02,0.000107,2]
[419999545,1775600220117,10000.01,0.000107,2]
[419999546,1775600220141,6054.97,0.000107,2]
[419999550,1775600546723,197.92,0.00011713,2]
[419999558,1775601032031,-250.0,0.00013,2]
[419999559,1775601032042,-235.4185,0.000131,2]
[419999560,1775601032120,-270.5815,0.000131,2]
[419999561,1775601032130,-335.0285191,0.00013589,2]
[419999562,1775601032142,-805.47043148,0.00013589,2]
[419999563,1775601032154,-303.38781552,0.00013589,2]
[419999564,1775601032166,-4526.83668561,0.00013589,2]
[419999565,1775601032179,-20.64062229,0.00013589,2]
[419999566,1775601032189,-173.09216701,0.00013651,2]
[419999567,1775601032199,-200.0,0.00013751,2]
[419999568,1775601032209,-176.38888935,0.00013759,2]
[419999569,1775601032222,-20453.15751065,0.00013759,2]
[419999570,1775601032233,-150.0,0.000144,2]
[419999571,1775601032243,-150.0,0.000144,2]
[419999572,1775601032253,-150.0,0.000144,2]
[419999573,1775601032263,-150.0,0.000144,2]
[419999574,1775601032273,-150.0,0.000144,2]
[419999575,1775601032283,-150.0,0.000144,2]
[419999576,1775601032293,-150.0,0.000144,2]
[419999577,1775601032303,-150.0,0.000144,2]
[419999578,1775601032313,-150.0,0.000144,2]
[419999579,1775601032323,-247.14,0.0001441,2]
[419999580,1775601032334,-2500.0,0.0001441,2]
[419999582,1775601032344,-2500.0,0.0001441,2]
[419999584,1775601032354,-2500.0,0.0001441,2]
[419999585,1775601032365,-2500.0,0.0001441,2]
[419999586,1775601032375,-2500.0,0.0001441,2]
[419999587,1775601032386,-300.0,0.0001441,2]
[419999588,1775601032397,-300.0,0.0001441,2]
[419999590,1775601032407,-300.0,0.0001441,2]
[419999592,1775601032417,-300.0,0.0001441,2]
[419999594,1775601032429,-300.0,0.0001441,2]
[419999596,1775601032440,-3240.0,0.0001443,2]
[419999599,1775601032457,-506.0,0.00014438,3]
[419999601,1775601032468,-473.23131418,0.0001445,2]
[419999603,1775601032479,-500.0,0.0001445,2]
[419999605,1775601032489,-2000.0,0.00014527,2]
[419999607,1775601032500,-150.0,0.00014536,2]
[419999609,1775601032511,-2716.6,0.00014557,2]
[419999610,1775601032522,-173.09216701,0.00014567,2]
[419999611,1775601032533,-150.0,0.00014578,2]
[419999612,1775601032544,-445.18938606,0.00014625,2]
[419999614,1775601032555,-150.0,0.00014629,2]
[419999616,1775601032565,-2163.17,0.0001463,2]
[419999617,1775601032577,-150.0,0.00014667,2]
[419999619,1775601032587,-247.14,0.00014684,2]
[419999621,1775601032598,-150.0,0.0001472,2]
[419999623,1775601032608,-150.0,0.00014756,2]
[419999625,1775601032618,-150.0,0.00014857,2]
[419999627,1775601032628,-150.0,0.00014933,2]
[419999629,1775601032639,-150.0,0.00014933,2]
[419999631,1775601032649,-150.0,0.00014933,2]
[419999633,1775601032660,-247.15,0.00014958,2]
[419999636,1775601032671,-557.07144304,0.0001499,2]
[419999639,1775601032689,-3162.99213515,0.0001499,2]
[419999641,1775601032700,-1298.97426525,0.00014993,2]
[419999643,1775601032712,-1606.12387378,0.00014993,2]
[419999645,1775601032725,-269.70186097,0.00014993,2]
[419999647,1775601032735,-256.09488944,0.00014993,2]
[419999650,1775601032748,-1203.28511056,0.00014993,2]
[419999652,1775601032758,-1000.0,0.00014998,2]
[419999654,1775601032768,-300.0,0.00015,2]
[419999656,1775601032777,-166.66,0.00015019,2]
[419999658,1775601032787,-150.0,0.0001504,2]
[419999660,1775601032797,-150.0,0.00015086,2]
[419999661,1775601032807,-164.38240708,0.00015092,2]
[419999664,1775601032922,-958.35718436,0.00015092,2]
[419999673,1775601038194,-400.93977782,0.00015092,2]
[419999674,1775601038206,-1020.29583807,0.00015092,2]
[419999675,1775601038434,-1290.02479267,0.00015092,2]
[419999676,1775601038443,-150.0,0.00015111,2]
[419999677,1775601038453,-2616.97862492,0.00015115,2]
[419999678,1775601038465,-1094.0,0.00015115,2]
[419999679,1775601038477,-123.02137508,0.00015115,2]
[419999680,1775601038486,-200.0,0.00015193,2]
[419999681,1775601038496,-500.0,0.00015193,2]
[419999682,1775601038506,-151.0,0.00015193,2]
[419999683,1775601038515,-131.84461462,0.000152,2]
[419999697,1775601040461,-18.15538538,0.000152,2]
[419999698,1775601040471,-150.0,0.000152,2]
[419999699,1775601040482,-150.0,0.000152,2]
[419999700,1775601040491,-476.9184141,0.00015248,2]
[419999701,1775601040504,-23.0815859,0.00015248,2]
[419999702,1775601040514,-151.0,0.00015248,2]
[419999703,1775601040524,-150.0,0.00015289,2]
[419999704,1775601040535,-536.4634141,0.000153,5]
[419999705,1775601040556,-944.37792715,0.000153,5]
[419999706,1775601040568,-219.15865875,0.000153,5]
[419999707,1775601040579,-150.0,0.00015314,2]
[419999708,1775601040590,-311.60480831,0.00015355,2]
[419999709,1775601040651,-394.39519169,0.00015355,2]
[419999710,1775601040661,-2055.0,0.0001536,2]
[419999711,1775601040672,-150.0,0.0001536,2]
[419999712,1775601040682,-2163.17,0.00015362,2]
[419999713,1775601040692,-5888.0,0.0001537,2]
[419999714,1775601040702,-736.0,0.00015383,2]
[419999715,1775601040712,-3500.0,0.000154,5]
[419999716,1775601040722,-150.0,0.00015467,2]
[419999717,1775601040733,-150.0,0.00015467,2]
[419999718,1775601040743,-150.0,0.00015467,2]
[419999719,1775601040753,-281.945828,0.00015479,7]
[419999720,1775601040763,-160.0,0.00015479,2]
[419999721,1775601040773,-1265.869478,0.00015479,2]
[419999722,1775601040783,-2371.738956,0.00015479,2]
[419999723,1775601040793,-199.693737,0.00015479,7]
[419999724,1775601040802,-160.0,0.00015479,7]
[419999725,1775601040812,-331.261948,0.00015479,7]
[419999726,1775601040822,-502.523897,0.00015479,7]
[419999727,1775601040833,-160.0,0.00015479,2]
[419999728,1775601040842,-457.982165,0.00015479,2]
[419999729,1775601040852,-755.964331,0.00015479,2]
[419999730,1775601040862,-953.69853207,0.000155,5]
[419999731,1775601040879,-462.52965099,0.000155,5]
[419999732,1775601041183,-3883.77181694,0.000155,5]
[419999733,1775601041193,-274.92354608,0.00015506,2]
[419999734,1775601041203,-500.0,0.00015506,2]
[419999735,1775601041212,-200.09793193,0.00015506,2]
[419999736,1775601041221,-4000.0,0.00015507,2]
[419999738,1775601041231,-706.0,0.0001551,2]
[419999740,1775601041240,-3834.0,0.00015518,2]
[419999741,1775601041250,-150.0,0.00015543,2]
[419999742,1775601041259,-500.0,0.00015599,2]
[419999743,1775601041269,-150.0,0.000156,2]
[419999744,1775601041278,-7100.0,0.000156,5]
[419999745,1775601041288,-150.0,0.00015644,2]
[419999746,1775601041298,-1000.0,0.00015669,2]
[419999747,1775601041308,-1000.0,0.00015674,2]
[419999748,1775601041317,-1000.0,0.00015674,2]
[419999750,1775601041326,-150.0,0.0001568,2]
[419999752,1775601041336,-2500.0,0.00015695,2]
[419999754,1775601041344,-8800.0,0.000157,5]
[419999756,1775601041354,-1000.0,0.00015702,2]
[419999758,1775601041364,-1000.0,0.00015722,2]
[419999760,1775601041373,-150.0,0.00015728,2]
[419999763,1775601041382,-1000.0,0.0001573,2]
[419999765,1775601041392,-1000.0,0.00015733,2]
[419999767,1775601041402,-150.0,0.00015733,2]
[419999768,1775601041412,-1000.0,0.00015737,2]
[419999770,1775601041421,-200.0,0.00015741,2]
[419999772,1775601041431,-736.0,0.00015742,2]
[419999774,1775601041440,-248.36398266,0.00015748,2]
[419999776,1775601041450,-193.186,0.00015771,2]
[419999778,1775601041460,-150.0,0.00015771,2]
[419999780,1775601041470,-1404.94540452,0.00015774,2]
[419999782,1775601041481,-506.0,0.00015776,4]
[419999784,1775601041490,-1000.0,0.00015776,2]
[419999786,1775601041500,-1000.0,0.00015781,2]
[419999788,1775601041510,-1000.0,0.00015784,2]
[419999790,1775601041521,-1000.0,0.00015786,2]
[419999792,1775601041530,-1752.0591519,0.00015787,2]
[419999794,1775601041540,-849.0374735,0.00015787,2]
[419999796,1775601041550,-1404.94540452,0.00015792,2]
[419999797,1775601041559,-500.0,0.00015794,2]
[419999799,1775601041569,-500.0,0.00015794,2]
[419999801,1775601041579,-115677.32669526,0.00015795,2]
[419999803,1775601041592,-474.24616922,0.00015795,2]
[419999829,1775601043399,-17137.44337721,0.00015795,2]
[419999830,1775601043565,-1044.23564751,0.00015795,2]
[419999973,1775601048167,-2701.44760208,0.00015795,2]
[419999974,1775601048181,-6654.87131588,0.00015795,2]
[419999975,1775601048201,-2658.00000427,0.00015795,2]
[419999976,1775601048214,-1551.49999988,0.00015795,2]
[419999977,1775601048265,-9150.72976221,0.00015795,2]
[419999978,1775601075403,355.0,0.000112,5]
[419999980,1775601127892,163.0,0.0001209,2]
[419999981,1775601188386,164.0,0.0001209,2]
[419999982,1775601188674,157.0,0.0001209,2]
[419999983,1775601248622,2825.15,0.00012001,2]
[419999984,1775601306601,164.0,0.0001209,2]
[419999986,1775601611612,161.0,0.0001209,2]
[419999987,1775601910465,161.0,0.0001209,2]
[419999990,1775602201715,201.0,9.989e-05,2]
[419999991,1775602201781,201.0,9.989e-05,2]
[419999992,1775602201830,201.0,9.989e-05,2]
[419999993,1775602205168,5000.0,0.00010988,2]
[419999994,1775602205301,4397.01,0.00011494,2]
[419999995,1775602205324,602.99,0.00011494,2]
[419999996,1775602207806,161.0,0.0001209,2]
[420000015,1775602232256,-831.64957871,0.00012603,2]
[420000018,1775602232269,-959.68902194,0.00012603,2]
[420000020,1775602232280,-500.0,0.00013,2]
[420000022,1775602232290,-506.0,0.000131,2]
[420000024,1775602232302,-156.39595107,0.00013452,2]
[420000026,1775602232312,-650.38998613,0.00013473,2]
[420000029,1775602232324,-1895.78926475,0.00013473,2]
[420000030,1775602232335,-472.0526679,0.00013473,2]
[420000031,1775602232347,-696.20302202,0.00013473,2]
[420000032,1775602232360,-398.83756625,0.00013473,2]
[420000033,1775602232370,-300.65726907,0.00013473,2]
[420000034,1775602232444,-2000.0,0.00013473,2]
[420000035,1775602232457,-723.749995,0.00013473,2]
[420000036,1775602232552,-550.23948953,0.00013473,2]
[420000037,1775602232564,-6593.70078122,0.00013473,2]
[420000038,1775602232574,-16703.4,0.00013542,2]
[420000039,1775602232584,-567.39483452,0.00013549,2]
[420000040,1775602232594,-300.0,0.00013557,2]
[420000041,1775602232604,-500.0,0.00013558,2]
[420000043,1775602232614,-211.94992226,0.00013558,2]
[420000045,1775602232624,-197.43988117,0.00013558,2]
[420000046,1775602232634,-373.88516599,0.00013558,2]
[420000048,1775602232645,-500.0,0.00013558,2]
[420000050,1775602232655,-500.0,0.00013558,2]
[420000052,1775602232666,-500.0,0.00013558,2]
[420000054,1775602232675,-500.0,0.00013558,2]
[420000057,1775602232686,-500.0,0.00013558,2]
[420000060,1775602232696,-618.71510759,0.00013558,2]
[420000063,1775602232706,-500.0,0.00013558,2]
[420000065,1775602232715,-188.52360132,0.00013558,2]
[420000067,1775602232725,-500.0,0.00013558,2]
[420000069,1775602232735,-288.77621957,0.00013558,2]
[420000071,1775602232745,-500.0,0.00013558,2]
[420000072,1775602232754,-500.0,0.00013558,2]
[420000075,1775602232764,-500.0,0.00013558,2]
[420000076,1775602232774,-500.0,0.00013558,2]
[420000077,1775602232784,-500.0,0.00013558,2]
[420000078,1775602232794,-500.0,0.00013558,2]
[420000079,1775602232804,-500.0,0.00013558,2]
[420000081,1775602232813,-500.0,0.00013558,2]
[420000083,1775602232823,-500.0,0.00013558,2]
[420000085,1775602232833,-500.0,0.00013558,2]
[420000086,1775602232843,-500.0,0.00013558,2]
[420000089,1775602232853,-500.0,0.00013558,2]
[420000090,1775602232863,-500.0,0.00013558,2]
[420000091,1775602232873,-168.62258165,0.00013558,2]
[420000092,1775602232883,-500.0,0.00013558,2]
[420000093,1775602232894,-500.0,0.00013558,2]
[420000094,1775602232904,-500.0,0.00013558,2]
[420000095,1775602232915,-500.0,0.00013558,2]
[420000096,1775602232925,-500.0,0.00013558,2]
[420000097,1775602232935,-500.0,0.00013558,2]
[420000098,1775602232946,-500.0,0.00013558,2]
[420000099,1775602232956,-500.0,0.00013558,2]
[420000100,1775602232966,-500.0,0.00013558,2]
[420000101,1775602232976,-500.0,0.00013558,2]
[420000102,1775602232987,-649.99999999,0.00013558,2]
[420000103,1775602232996,-500.0,0.00013558,2]
[420000104,1775602233006,-500.0,0.00013558,2]
[420000105,1775602233015,-500.0,0.00013558,2]
[420000106,1775602233025,-500.0,0.00013558,2]
[420000107,1775602233035,-146089.91520671,0.00013559,2]
[420000112,1775602241895,-1454.24614478,0.00013559,2]
[420000113,1775602241906,-1885.09433449,0.00013559,2]
[420000116,1775602241918,-32227.54857736,0.00013559,2]
[420000120,1775602241929,-1583.41443103,0.00013559,2]
[420000123,1775602241941,-321.535,0.00013559,2]
[420000125,1775602241952,-1349.90711029,0.00013559,2]
[420000132,1775602242011,-1165.5545,0.00013559,2]
[420000133,1775602242023,-546.88549959,0.00013559,2]
[420000134,1775602242035,-737.66340702,0.00013559,2]
[420000135,1775602242047,-944.33,0.00013559,2]
[420000136,1775602242060,-7797.00312763,0.00013559,2]
[420000137,1775602242072,-2850.96823875,0.00013559,2]
[420000138,1775602242084,-8794.02795487,0.00013559,2]
[420000139,1775602242096,-10616.94215849,0.00013559,2]
[420000140,1775602242111,-573.42567581,0.00013559,2]
[420000141,1775602242127,-1041.30749209,0.00013559,2]
[420000142,1775602242139,-314.22658142,0.00013559,2]
[420000143,1775602242158,-600.0,0.00013559,2]
[420000144,1775602242170,-670.48004675,0.00013559,2]
[420000145,1775602242182,-4200.00031248,0.00013559,2]
[420000146,1775602242597,-5244.44842713,0.00013559,2]
[420000147,1775602242632,-711.515,0.00013559,2]
[420000148,1775602242644,-493.65095226,0.00013559,2]
[420000149,1775602242660,-1579.98920765,0.00013559,2]
[420000150,1775602242672,-1609.73597671,0.00013559,2]
[420000151,1775602242692,-1975296.27803669,0.00013559,2]
[420000152,1775602242702,-500.0,0.00013573,2]
[420000153,1775602242711,-487.27836688,0.00013573,2]
[420000154,1775602242720,-754.57,0.00013586,2]
[420000155,1775602242730,-150.0,0.00013699,2]
[420000156,1775602242739,-150.0,0.00013699,2]
[420000157,1775602242749,-150.0,0.00013699,2]
[420000158,1775602242758,-150.0,0.00013699,2]
[420000159,1775602242768,-150.0,0.00013699,2]
[420000160,1775602242777,-2850.0,0.00013699,2]
[420000161,1775602242788,-150.0,0.00013699,2]
[420000162,1775602242798,-150.0,0.00013699,2]
[420000163,1775602242808,-150.0,0.00013699,2]
[420000164,1775602242818,-166.66,0.00013699,2]
[420000165,1775602242828,-200.0,0.00013699,2]
[420000166,1775602242838,-493.03289613,0.00013699,2]
[420000168,1775602242848,-162.53,0.000137,2]
[420000170,1775602242858,-1600.0,0.00013705,2]
[420000171,1775602242867,-2540.07,0.00013708,2]
[420000172,1775602242877,-10168.34753482,0.00013743,2]
[420000173,1775602242887,-4113.27250699,0.0001382,2]
[420000174,1775602242897,-150.0,0.000139,2]
[420000175,1775602242907,-1000.0,0.00013908,2]
[420000176,1775602242917,-166.66,0.00013938,2]
[420000177,1775602242928,-327.39,0.00013959,2]
[420000178,1775602242937,-1041.55979868,0.00013968,2]
[420000179,1775602242947,-150.0,0.00013973,2]
[420000181,1775602242957,-150.0,0.00013973,2]
[420000183,1775602242968,-150.0,0.00013973,2]
[420000185,1775602242977,-150.0,0.00013973,2]
[420000187,1775602242987,-150.0,0.00013973,2]
[420000189,1775602242996,-150.0,0.00013973,2]
[420000191,1775602243006,-150.0,0.00013973,2]
[420000193,1775602243017,-11794.59590422,0.0001399,2]
[420000195,1775602243026,-10168.34753482,0.00014012,2]
[420000197,1775602243037,-4113.27250699,0.00014166,2]
[420000199,1775602243047,-166.66,0.00014177,2]
[420000203,1775602243058,-150.0,0.00014247,2]
[420000206,1775602243069,-150.0,0.00014247,2]
[420000209,1775602243080,-150.0,0.00014247,2]
[420000211,1775602243090,-150.0,0.00014247,2]
[420000214,1775602243100,-150.0,0.00014247,2]
[420000217,1775602243111,-10168.34753482,0.00014282,2]
[420000219,1775602243121,-195.0,0.000143,2]
[420000221,1775602243131,-2500.0,0.000143,2]
[420000223,1775602243141,-2500.0,0.000143,2]
[420000224,1775602243152,-2500.0,0.000143,2]
[420000227,1775602243162,-2500.0,0.000143,2]
[420000229,1775602243172,-2500.0,0.000143,2]
[420000231,1775602243182,-300.0,0.000143,2]
[420000233,1775602243193,-300.0,0.000143,2]
[420000235,1775602243203,-300.0,0.000143,2]
[420000238,1775602243213,-300.0,0.000143,2]
[420000241,1775602243223,-300.0,0.000143,2]
[420000243,1775602243234,-500.0,0.000143,2]
[420000245,1775602243244,-500.0,0.000143,2]
[420000247,1775602243255,-500.0,0.000143,2]
[420000249,1775602243265,-500.0,0.000143,2]
[420000251,1775602243276,-227.17019422,0.000143,2]
[420000253,1775602243286,-195.0,0.000143,2]
[420000256,1775602243296,-10107.55,0.00014342,2]
[420000259,1775602243306,-1573.0,0.000144,2]
[420000261,1775602243316,-162.0,0.000144,2]
[420000263,1775602243327,-150.0,0.000144,2]
[420000265,1775602243337,-150.0,0.000144,2]
[420000267,1775602243347,-150.0,0.000144,2]
[420000269,1775602243359,-150.14541725,0.000144,2]
[420000271,1775602243369,-150.17540857,0.000144,2]
[420000273,1775602243379,-150.0,0.000144,2]
[420000275,1775602243390,-150.0,0.000144,2]
[420000277,1775602243399,-150.0,0.000144,2]
[420000279,1775602243410,-151.01430456,0.000144,2]
[420000281,1775602243420,-150.0,0.000144,2]
[420000283,1775602243430,-287.38140471,0.000144,2]
[420000285,1775602243440,-150.0,0.000144,2]
[420000287,1775602243450,-2812.0,0.000144,2]
[420000289,1775602243461,-200.0,0.00014401,2]
[420000291,1775602243471,-151.0,0.00014401,2]
[420000293,1775602243481,-151.0,0.00014401,2]
[420000295,1775602243491,-151.0,0.00014401,2]
[420000297,1775602243501,-151.0,0.00014401,2]
[420000299,1775602243514,-151.0,0.00014401,2]
[420000301,1775602243524,-151.0,0.00014401,2]
[420000303,1775602243535,-151.0,0.00014401,2]
[420000305,1775602243545,-151.0,0.00014401,2]
[420000307,1775602243557,-151.0,0.00014401,2]
[420000309,1775602243567,-151.0,0.00014401,2]
[420000311,1775602243577,-151.0,0.00014401,2]
[420000313,1775602243587,-151.0,0.00014401,2]
[420000315,1775602243597,-151.0,0.00014407,2]
[420000317,1775602243608,-166.66,0.00014417,2]
[420000319,1775602243620,-506.0,0.00014438,3]
[420000321,1775602243630,-150.0,0.00014494,2]
[420000323,1775602243641,-150.0,0.000145,2]
[420000325,1775602243651,-4113.27250699,0.00014513,2]
[420000327,1775602243662,-150.0,0.00014523,2]
[420000329,1775602243673,-479.93,0.00014537,2]
[420000331,1775602243682,-10168.34753482,0.00014552,2]
[420000333,1775602243693,-150.0,0.00014578,2]
[420000335,1775602243703,-150.0,0.00014588,2]
[420000337,1775602243712,-150.0,0.000146,2]
[420000339,1775602243722,-150.0,0.00014646,2]
[420000340,1775602243732,-166.66,0.00014656,2]
[420000342,1775602243742,-150.0,0.00014667,2]
[420000344,1775602243752,-150.0,0.00014682,2]
[420000346,1775602243761,-150.0,0.000147,2]
[420000348,1775602243772,-150.0,0.00014756,2]
[420000350,1775602243782,-150.0,0.00014769,2]
[420000352,1775602243792,-150.0,0.00014776,2]
[420000354,1775602243803,-150.0,0.000148,2]
[420000357,1775602243815,-150.0,0.000148,2]
[420000359,1775602243826,-10168.34753482,0.00014821,2]
[420000361,1775602243836,-420.0,0.00014859,2]
[420000363,1775602243846,-4113.27250699,0.0001486,2]
[420000365,1775602243857,-416.952242,0.00014865,7]
[420000366,1775602243867,-160.0,0.00014865,2]
[420000369,1775602243878,-795.939877,0.00014865,2]
[420000370,1775602243888,-1431.879754,0.00014865,2]
[420000371,1775602243899,-355.425007,0.00014865,7]
[420000372,1775602243910,-150.0,0.00014871,2]
[420000373,1775602243921,-2592.0,0.00014877,2]
[420000374,1775602243931,-150.0,0.00014892,2]
[420000375,1775602243942,-166.66,0.00014896,2]
[420000376,1775602243952,-150.0,0.000149,2]
[420000377,1775602243964,-229.3073468,0.000149,2]
[420000379,1775602243974,-275.25610977,0.00014914,2]
[420000381,1775602243985,-500.0,0.00014925,2]
[420000383,1775602243996,-150.0,0.00014933,2]
[420000385,1775602244006,-150.0,0.00014933,2]
[420000386,1775602244016,-200.0,0.00014949,2]
[420000387,1775602244027,-150.0,0.00014965,2]
[420000388,1775602244037,-160.0,0.00014982,7]